fUSD/lending_fUSD_20250329
["ID","MTS","AMOUNT","RATE_DAILY","PERIOD"]
[356807418,1743235704123,-592.33920182,0.0003863,30]
[356807419,1743235704160,-511.44946048,0.0003863,30]
[356807420,1743235704196,-500.0,0.0003863,30]
[356807421,1743235704236,-579.39603474,0.0003863,30]
[356807422,1743235704275,-533.76798701,0.0003863,30]
[356807423,1743235704313,-506.74913343,0.0003863,30]
[356807424,1743235704461,-500.0,0.0003863,30]
[356807425,1743235704500,-500.0,0.0003863,30]
[356807426,1743235704537,-500.0,0.0003863,30]
[356807427,1743235704575,-500.0,0.0003863,30]
[356807428,1743235704612,-514.516418,0.0003863,30]
[356807429,1743235704648,-537.34540843,0.0003863,30]
[356807430,1743235704684,-508.27212886,0.0003863,30]
[356807431,1743235704722,-500.0,0.0003863,30]
[356807432,1743235704758,-500.0,0.0003863,30]
[356807433,1743235704796,-500.0,0.0003863,30]
[356807434,1743235704831,-310.16793967,0.0003863,30]
[356807435,1743235704868,-500.0,0.0003863,30]
[356807436,1743235704907,-500.0,0.0003863,30]
[356807437,1743235704947,-628.09402755,0.0003863,30]
[356807438,1743235704987,-500.0,0.0003863,30]
[356807439,1743235705027,-648.56796999,0.0003863,30]
[356807440,1743235705070,-504.48706099,0.0003863,30]
[356807441,1743235705109,-500.0,0.0003863,30]
[356807442,1743235705150,-500.0,0.0003863,30]
[356807443,1743235705188,-500.0,0.0003863,30]
[356807444,1743235705226,-439.60548812,0.0003863,30]
[356807445,1743235705264,-900.54,0.0003863,30]
[356807446,1743235705302,-500.0,0.0003863,30]
[356807447,1743235705340,-532.05708019,0.0003863,30]
[356807448,1743235705377,-500.0,0.0003863,30]
[356807449,1743235705415,-559.15,0.0003863,30]
[356807450,1743235705455,-310.4163728,0.0003863,30]
[356807451,1743235705492,-620.51,0.0003863,30]
[356807452,1743235705530,-500.0,0.0003863,30]
[356807453,1743235705569,-500.0,0.0003863,30]
[356807454,1743235705611,-500.0,0.0003863,30]
[356807455,1743235705654,-855.45,0.0003863,30]
[356807456,1743235705694,-500.0,0.0003863,30]
[356807457,1743235705731,-632.90138133,0.0003863,30]
[356807458,1743235705770,-500.0,0.0003863,30]
[356807459,1743235705809,-500.0,0.0003863,30]
[356807460,1743235705847,-500.0,0.0003863,30]
[356807461,1743235705886,-500.0,0.0003863,30]
[356807462,1743235705924,-500.0,0.0003863,30]
[356807463,1743235705964,-500.0,0.0003863,30]
[356807464,1743235706009,-235.42359603,0.0003863,30]
[356807465,1743235706050,-580.5873385,0.0003863,30]
[356807466,1743235706090,-500.0,0.0003863,30]
[356807467,1743235706131,-500.0,0.0003863,30]
[356807468,1743235706173,-500.0,0.0003863,30]
[356807469,1743235706214,-500.0,0.0003863,30]
[356807470,1743235706253,-519.36054827,0.0003863,30]
[356807471,1743235706293,-500.0,0.0003863,30]
[356807472,1743235706334,-500.0,0.0003863,30]
[356807473,1743235706375,-586.37685219,0.0003863,30]
[356807474,1743235706415,-500.0,0.0003863,30]
[356807475,1743235706458,-500.0,0.0003863,30]
[356807476,1743235706498,-500.0,0.0003863,30]
[356807477,1743235706539,-1000.0,0.0003863,30]
[356807478,1743235706580,-500.0,0.0003863,30]
[356807479,1743235706624,-526.50894488,0.0003863,30]
[356807480,1743235706664,-500.0,0.0003863,30]
[356807481,1743235706705,-591.56476352,0.0003863,30]
[356807482,1743235706746,-500.0,0.0003863,30]
[356807483,1743235706787,-500.0,0.0003863,30]
[356807484,1743235706828,-500.0,0.0003863,30]
[356807485,1743235706870,-347.22054,0.0003863,30]
[356807486,1743235706919,-530.55335474,0.0003863,30]
[356807487,1743235706963,-317.38092269,0.0003863,30]
[356807488,1743235707006,-963.21,0.0003863,30]
[356807489,1743235707049,-1734.11,0.0003863,30]
[356807490,1743235707095,-574.19872202,0.0003863,30]
[356807491,1743235707140,-604.1644286,0.0003863,30]
[356807492,1743235707288,-645.82153254,0.0003863,30]
[356807493,1743235707339,-500.0,0.0003863,30]
[356807494,1743235707380,-217.36900154,0.0003863,30]
[356807495,1743235707421,-561.48783124,0.0003863,30]
[356807496,1743235707461,-955.85,0.0003863,30]
[356807497,1743235707501,-500.0,0.0003863,30]
[356807498,1743235707540,-348.21743135,0.0003863,30]
[356807499,1743235707579,-500.0,0.0003863,30]
[356807500,1743235707621,-532.38872724,0.0003863,30]
[356807501,1743235707660,-500.0,0.0003863,30]
[356807502,1743235707698,-540.39979005,0.0003863,30]
[356807503,1743235707735,-552.91660792,0.0003863,30]
[356807504,1743235707773,-614.6803734,0.0003863,30]
[356807505,1743235707812,-553.17955022,0.0003863,30]
[356807506,1743235707849,-511.73521624,0.0003863,30]
[356807507,1743235707889,-539.072155,0.0003863,30]
[356807508,1743235707927,-331.95284698,0.0003863,30]
[356807509,1743235707965,-628.93784427,0.0003863,30]
[356807510,1743235708005,-541.14772718,0.0003863,30]
[356807511,1743235708046,-623.55737746,0.0003863,30]
[356807512,1743235708089,-2452.46,0.0003863,30]
[356807513,1743235708129,-543.29588637,0.0003863,30]
[356807514,1743235708169,-500.0,0.0003863,30]
[356807515,1743235708210,-568.68854925,0.0003863,30]
[356807516,1743235708249,-583.81719263,0.0003863,30]
[356807517,1743235708289,-514.96529489,0.0003863,30]
[356807518,1743235708328,-500.0,0.0003863,30]
[356807519,1743235708367,-500.0,0.0003863,30]
[356807520,1743235708407,-626.62031764,0.0003863,30]
[356807521,1743235708446,-500.0,0.0003863,30]
[356807522,1743235708485,-571.66386236,0.0003863,30]
[356807523,1743235708536,-561.47227438,0.0003863,30]
[356807524,1743235708578,-556.29954524,0.0003863,30]
[356807525,1743235708619,-491.99282978,0.0003863,30]
[356807526,1743235708660,-634.47542024,0.0003863,30]
[356807527,1743235708700,-552.26861947,0.0003863,30]
[356807528,1743235708740,-521.37260736,0.0003863,30]
[356807529,1743235708779,-542.64829908,0.0003863,30]
[356807530,1743235708817,-535.02933115,0.0003863,30]
[356807531,1743235708854,-538.27604258,0.0003863,30]
[356807532,1743235708890,-523.35208116,0.0003863,30]
[356807533,1743235708929,-577.43228303,0.0003863,30]
[356807534,1743235708969,-500.0,0.0003863,30]
[356807535,1743235709007,-560.23858832,0.0003863,30]
[356807536,1743235709047,-500.0,0.0003863,30]
[356807537,1743235709087,-500.0,0.0003863,30]
[356807538,1743235709125,-500.0,0.0003863,30]
[356807539,1743235709163,-185.82463163,0.0003863,30]
[356807540,1743235709203,-505.23463429,0.0003863,30]
[356807541,1743235709242,-581.64402267,0.0003863,30]
[356807542,1743235709282,-614.79291761,0.0003863,30]
[356807543,1743235709322,-534.12061509,0.0003863,30]
[356807544,1743235709362,-534.04267434,0.0003863,30]
[356807545,1743235709399,-529.64716029,0.0003863,30]
[356807546,1743235709437,-577.11640358,0.0003863,30]
[356807547,1743235709474,-526.97425134,0.0003863,30]
[356807548,1743235709512,-515.99056609,0.0003863,30]
[356807549,1743235709549,-561.63322558,0.0003863,30]
[356807550,1743235709586,-500.0,0.0003863,30]
[356807551,1743235709624,-515.61693079,0.0003863,30]
[356807552,1743235709663,-500.0,0.0003863,30]
[356807553,1743235709702,-500.0,0.0003863,30]
[356807554,1743235709740,-576.35075325,0.0003863,30]
[356807555,1743235709778,-500.0,0.0003863,30]
[356807556,1743235709815,-1389.75,0.0003863,30]
[356807557,1743235709853,-500.0,0.0003863,30]
[356807558,1743235709891,-530.43238884,0.0003863,30]
[356807559,1743235710047,-546.41550778,0.0003863,30]
[356807560,1743235710085,-375.07479211,0.0003863,30]
[356807561,1743235710123,-559.67983262,0.0003863,30]
[356807562,1743235710160,-585.25242311,0.0003863,30]
[356807563,1743235710198,-500.0,0.0003863,30]
[356807564,1743235710234,-545.34858928,0.0003863,30]
[356807565,1743235710273,-507.36855686,0.0003863,30]
[356807566,1743235710310,-500.0,0.0003863,30]
[356807567,1743235710346,-270.24100745,0.0003863,30]
[356807568,1743235710382,-500.0,0.0003863,30]
[356807569,1743235710419,-500.0,0.0003863,30]
[356807570,1743235710456,-500.0,0.0003863,30]
[356807571,1743235710495,-534.13707443,0.0003863,30]
[356807572,1743235710532,-634.37894354,0.0003863,30]
[356807573,1743235710569,-549.68710007,0.0003863,30]
[356807574,1743235710610,-514.68598712,0.0003863,30]
[356807575,1743235710652,-642.69102522,0.0003863,30]
[356807576,1743235710688,-500.0,0.0003863,30]
[356807577,1743235710723,-501.9641832,0.0003863,30]
[356807578,1743235710759,-566.49,0.0003863,30]
[356807579,1743235710794,-579.16280123,0.0003863,30]
[356807580,1743235710829,-546.45948226,0.0003863,30]
[356807581,1743235710865,-500.0,0.0003863,30]
[356807582,1743235710899,-1145.24,0.0003863,30]
[356807583,1743235710934,-500.0,0.0003863,30]
[356807584,1743235710970,-500.0,0.0003863,30]
[356807585,1743235711006,-500.0,0.0003863,30]
[356807586,1743235711042,-500.0,0.0003863,30]
[356807587,1743235711078,-532.20359806,0.0003863,30]
[356807588,1743235711114,-500.0,0.0003863,30]
[356807589,1743235711151,-635.46867951,0.0003863,30]
[356807590,1743235711188,-500.0,0.0003863,30]
[356807591,1743235711226,-500.0,0.0003863,30]
[356807592,1743235711264,-183.40146768,0.0003863,30]
[356807593,1743235711300,-524.54933378,0.0003863,30]
[356807594,1743235711336,-644.97,0.0003863,30]
[356807595,1743235711374,-528.01107708,0.0003863,30]
[356807596,1743235711410,-276.05359838,0.0003863,30]
[356807597,1743235711445,-550.36167965,0.0003863,30]
[356807598,1743235711480,-500.0,0.0003863,30]
[356807599,1743235711515,-620.95,0.0003863,30]
[356807600,1743235711549,-516.61019674,0.0003863,30]
[356807601,1743235711585,-500.0,0.0003863,30]
[356807602,1743235711621,-500.0,0.0003863,30]
[356807603,1743235711656,-172.669308,0.0003863,30]
[356807604,1743235711690,-174.8313874,0.0003863,30]
[356807605,1743235711724,-500.0,0.0003863,30]
[356807606,1743235711759,-194.71337627,0.0003863,30]
[356807607,1743235711797,-500.0,0.0003863,30]
[356807608,1743235711836,-500.0,0.0003863,30]
[356807609,1743235711874,-500.0,0.0003863,30]
[356807610,1743235711913,-538.20191415,0.0003863,30]
[356807611,1743235711951,-500.0,0.0003863,30]
[356807612,1743235711989,-261.82507474,0.0003863,30]
[356807613,1743235712027,-500.0,0.0003863,30]
[356807614,1743235712066,-500.0,0.0003863,30]
[356807615,1743235712106,-500.0,0.0003863,30]
[356807616,1743235712146,-306.82680289,0.0003863,30]
[356807617,1743235712187,-500.0,0.0003863,30]
[356807618,1743235712228,-500.0,0.0003863,30]
[356807619,1743235712266,-536.71143928,0.0003863,30]
[356807620,1743235712303,-500.0,0.0003863,30]
[356807621,1743235712342,-639.37423428,0.0003863,30]
[356807622,1743235712380,-532.54542073,0.0003863,30]
[356807623,1743235712544,-500.0,0.0003863,30]
[356807624,1743235712581,-529.12875858,0.0003863,30]
[356807625,1743235712620,-224.53638557,0.0003863,30]
[356807626,1743235712658,-500.0,0.0003863,30]
[356807627,1743235712695,-2000.0,0.0003863,30]
[356807628,1743235712732,-704.24,0.0003863,30]
[356807629,1743235712769,-1519.05,0.0003863,30]
[356807630,1743235712808,-500.0,0.0003863,30]
[356807631,1743235712845,-500.0,0.0003863,30]
[356807632,1743235712882,-220.25895773,0.0003863,30]
[356807633,1743235712920,-500.0,0.0003863,30]
[356807634,1743235712959,-500.0,0.0003863,30]
[356807635,1743235712998,-353.84504724,0.0003863,30]
[356807636,1743235713041,-500.0,0.0003863,30]
[356807637,1743235713085,-500.0,0.0003863,30]
[356807638,1743235713129,-500.0,0.0003863,30]
[356807639,1743235713170,-2474.82,0.0003863,30]
[356807640,1743235713212,-520.42223309,0.0003863,30]
[356807641,1743235713255,-500.0,0.0003863,30]
[356807642,1743235713300,-4980.22,0.0003863,30]
[356807643,1743235713347,-519.79666159,0.0003863,30]
[356807644,1743235713394,-515.25829399,0.0003863,30]
[356807645,1743235713443,-287.64343503,0.0003863,30]
[356807646,1743235713489,-944.43,0.0003863,30]
[356807647,1743235713536,-500.0,0.0003863,30]
[356807648,1743235713582,-425.60213109,0.0003863,30]
[356807649,1743235713626,-500.0,0.0003863,30]
[356807650,1743235713671,-500.0,0.0003863,30]
[356807651,1743235713716,-605.33031908,0.0003863,30]
[356807652,1743235713759,-500.0,0.0003863,30]
[356807653,1743235713802,-500.0,0.0003863,30]
[356807654,1743235713846,-500.0,0.0003863,30]
[356807655,1743235713888,-1154.76,0.0003863,30]
[356807656,1743235713935,-546.00231183,0.0003863,30]
[356807657,1743235713980,-500.0,0.0003863,30]
[356807658,1743235714022,-635.2,0.0003863,30]
[356807659,1743235714066,-534.60467684,0.0003863,30]
[356807660,1743235714109,-500.0,0.0003863,30]
[356807661,1743235714152,-500.0,0.0003863,30]
[356807662,1743235714195,-500.0,0.0003863,30]
[356807663,1743235714236,-500.0,0.0003863,30]
[356807664,1743235714278,-500.0,0.0003863,30]
[356807665,1743235714319,-500.0,0.0003863,30]
[356807666,1743235714360,-500.0,0.0003863,30]
[356807667,1743235714400,-1215.92,0.0003863,30]
[356807668,1743235714441,-500.0,0.0003863,30]
[356807669,1743235714481,-500.0,0.0003863,30]
[356807670,1743235714522,-520.24596295,0.0003863,30]
[356807671,1743235714564,-500.0,0.0003863,30]
[356807672,1743235714605,-500.0,0.0003863,30]
[356807673,1743235714654,-578.61214931,0.0003863,30]
[356807674,1743235714696,-500.0,0.0003863,30]
[356807675,1743235714736,-183.31578462,0.0003863,30]
[356807676,1743235714775,-500.0,0.0003863,30]
[356807677,1743235714816,-500.0,0.0003863,30]
[356807678,1743235714856,-549.53,0.0003863,30]
[356807679,1743235714896,-841.6,0.0003863,30]
[356807680,1743235714935,-500.0,0.0003863,30]
[356807681,1743235714974,-559.82654995,0.0003863,30]
[356807682,1743235715015,-303.26978768,0.0003863,30]
[356807683,1743235715055,-500.0,0.0003863,30]
[356807684,1743235715097,-500.0,0.0003863,30]
[356807685,1743235715242,-500.0,0.0003863,30]
[356807686,1743235715281,-500.0,0.0003863,30]
[356807687,1743235715321,-197.0737893,0.0003863,30]
[356807688,1743235715359,-500.0,0.0003863,30]
[356807689,1743235715396,-4021.44,0.0003863,30]
[356807690,1743235715436,-1673.28,0.0003863,30]
[356807691,1743235715476,-500.0,0.0003863,30]
[356807692,1743235715515,-500.0,0.0003863,30]
[356807693,1743235715553,-500.0,0.0003863,30]
[356807694,1743235715591,-546.37047832,0.0003863,30]
[356807695,1743235715633,-274.83931149,0.0003863,30]
[356807696,1743235715674,-500.0,0.0003863,30]
[356807697,1743235715713,-500.0,0.0003863,30]
[356807698,1743235715751,-500.0,0.0003863,30]
[356807699,1743235715787,-609.00291003,0.0003863,30]
[356807700,1743235715824,-645.85,0.0003863,30]
[356807701,1743235715862,-500.0,0.0003863,30]
[356807702,1743235715898,-500.0,0.0003863,30]
[356807703,1743235715936,-500.0,0.0003863,30]
[356807704,1743235715974,-486.60701028,0.0003863,30]
[356807705,1743235716012,-615.13099833,0.0003863,30]
[356807706,1743235716051,-500.0,0.0003863,30]
[356807707,1743235716089,-506.84921198,0.0003863,30]
[356807708,1743235716127,-500.0,0.0003863,30]
[356807709,1743235716165,-500.0,0.0003863,30]
[356807710,1743235716202,-500.0,0.0003863,30]
[356807711,1743235716240,-500.0,0.0003863,30]
[356807712,1743235716277,-500.0,0.0003863,30]
[356807713,1743235716315,-500.0,0.0003863,30]
[356807714,1743235716352,-500.0,0.0003863,30]
[356807715,1743235716388,-500.0,0.0003863,30]
[356807716,1743235716425,-596.52461145,0.0003863,30]
[356807717,1743235716462,-500.0,0.0003863,30]
[356807718,1743235716500,-500.0,0.0003863,30]
[356807719,1743235716537,-500.0,0.0003863,30]
[356807720,1743235716575,-408.07003492,0.0003863,30]
[356807721,1743235716614,-500.0,0.0003863,30]
[356807722,1743235716651,-528.37922936,0.0003863,30]
[356807723,1743235716689,-3232.5,0.0003863,30]
[356807724,1743235716728,-2197.43,0.0003863,30]
[356807725,1743235716766,-500.0,0.0003863,30]
[356807726,1743235716804,-691.46,0.0003863,30]
[356807727,1743235716842,-478.48037881,0.0003863,30]
[356807728,1743235716879,-500.0,0.0003863,30]
[356807729,1743235716917,-500.0,0.0003863,30]
[356807730,1743235716953,-577.37331064,0.0003863,30]
[356807731,1743235716991,-500.0,0.0003863,30]
[356807732,1743235717028,-500.0,0.0003863,30]
[356807733,1743235717067,-500.0,0.0003863,30]
[356807734,1743235717104,-500.0,0.0003863,30]
[356807735,1743235717143,-500.0,0.0003863,30]
[356807736,1743235717184,-500.0,0.0003863,30]
[356807737,1743235717223,-568.59430333,0.0003863,30]
[356807738,1743235717261,-507.00234723,0.0003863,30]
[356807739,1743235717299,-537.61386189,0.0003863,30]
[356807740,1743235717337,-508.9807286,0.0003863,30]
[356807741,1743235717375,-1187.26,0.0003863,30]
[356807742,1743235717414,-391.53773694,0.0003863,30]
[356807743,1743235717452,-13149.44,0.0003863,30]
[356807744,1743235717491,-500.0,0.0003863,30]
[356807745,1743235717640,-500.0,0.0003863,30]
[356807746,1743235717680,-527.41293272,0.0003863,30]
[356807747,1743235717719,-522.54888677,0.0003863,30]
[356807748,1743235717758,-500.0,0.0003863,30]
[356807749,1743235717797,-500.0,0.0003863,30]
[356807750,1743235717838,-500.0,0.0003863,30]
[356807751,1743235717877,-500.0,0.0003863,30]
[356807752,1743235717917,-500.0,0.0003863,30]
[356807753,1743235717957,-578.67989597,0.0003863,30]
[356807754,1743235717996,-500.0,0.0003863,30]
[356807755,1743235718035,-500.0,0.0003863,30]
[356807756,1743235718074,-531.66832371,0.0003863,30]
[356807757,1743235718111,-2622.65,0.0003863,30]
[356807758,1743235718150,-1673.8,0.0003863,30]
[356807759,1743235718188,-500.0,0.0003863,30]
[356807760,1743235718228,-307.55096759,0.0003863,30]
[356807761,1743235718266,-500.0,0.0003863,30]
[356807762,1743235718304,-535.75425416,0.0003863,30]
[356807763,1743235718342,-500.0,0.0003863,30]
[356807764,1743235718381,-516.508615,0.0003863,30]
[356807765,1743235718419,-992.28,0.0003863,30]
[356807766,1743235718458,-500.0,0.0003863,30]
[356807767,1743235718496,-523.3695761,0.0003863,30]
[356807768,1743235718534,-220.3031838,0.0003863,30]
[356807769,1743235718571,-560.97761193,0.0003863,30]
[356807770,1743235718608,-500.0,0.0003863,30]
[356807771,1743235718651,-500.0,0.0003863,30]
[356807772,1743235718693,-500.0,0.0003863,30]
[356807773,1743235718735,-500.0,0.0003863,30]
[356807774,1743235718775,-1940.15,0.0003863,30]
[356807775,1743235718814,-500.0,0.0003863,30]
[356807776,1743235718851,-570.48536114,0.0003863,30]
[356807777,1743235718889,-500.0,0.0003863,30]
[356807778,1743235718927,-161.88500144,0.0003863,30]
[356807779,1743235718965,-500.0,0.0003863,30]
[356807780,1743235719005,-49373.65,0.0003863,30]
[356807781,1743235719045,-542.81980601,0.0003863,30]
[356807782,1743235719085,-500.0,0.0003863,30]
[356807783,1743235719124,-500.0,0.0003863,30]
[356807784,1743235719164,-647.1058756,0.0003863,30]
[356807785,1743235719204,-525.84707456,0.0003863,30]
[356807786,1743235719245,-548.12814045,0.0003863,30]
[356807787,1743235719286,-500.0,0.0003863,30]
[356807788,1743235719326,-549.57230834,0.0003863,30]
[356807789,1743235719365,-500.0,0.0003863,30]
[356807790,1743235719403,-521.05791126,0.0003863,30]
[356807791,1743235719441,-11680.42,0.0003863,30]
[356807792,1743235719481,-500.0,0.0003863,30]
[356807793,1743235719521,-538.92157178,0.0003863,30]
[356807794,1743235719559,-540.39978032,0.0003863,30]
[356807795,1743235719598,-500.0,0.0003863,30]
[356807796,1743235719641,-642.56571695,0.0003863,30]
[356807797,1743235719683,-2113.54,0.0003863,30]
[356807798,1743235719725,-452.11926935,0.0003863,30]
[356807799,1743235719763,-623.52051421,0.0003863,30]
[356807800,1743235719801,-500.0,0.0003863,30]
[356807801,1743235719838,-500.0,0.0003863,30]
[356807802,1743235719964,-500.0,0.0003863,30]
[356807803,1743235720011,-598.91684168,0.0003863,30]
[356807804,1743235720050,-500.0,0.0003863,30]
[356807805,1743235720090,-500.0,0.0003863,30]
[356807806,1743235720129,-1037.22,0.0003863,30]
[356807807,1743235720170,-500.0,0.0003863,30]
[356807808,1743235720212,-1073.54,0.0003863,30]
[356807809,1743235720251,-500.0,0.0003863,30]
[356807810,1743235720291,-588.32397811,0.0003863,30]
[356807811,1743235720330,-500.0,0.0003863,30]
[356807812,1743235720367,-500.0,0.0003863,30]
[356807813,1743235720405,-535.40162376,0.0003863,30]
[356807814,1743235720443,-574.86043801,0.0003863,30]
[356807815,1743235720482,-204.0,0.0003864,30]
[356807816,1743235720520,-499.5988,0.00038888,30]
[356807817,1743235720559,-752.06,0.00038903,30]
[356807818,1743235720598,-516.581858,0.00038904,30]
[356807819,1743235720640,-576.23729959,0.00038904,30]
[356807820,1743235720681,-500.0,0.00038904,30]
[356807821,1743235720722,-500.0,0.00038904,30]
[356807822,1743235720760,-500.0,0.00038904,30]
[356807823,1743235720798,-518.29820923,0.00038904,30]
[356807824,1743235720836,-500.0,0.00038904,30]
[356807825,1743235720874,-500.0,0.00038904,30]
[356807826,1743235720913,-500.0,0.00038904,30]
[356807827,1743235720951,-500.0,0.00038904,30]
[356807828,1743235720988,-516.41479729,0.00038904,30]
[356807829,1743235721024,-500.0,0.00038904,30]
[356807830,1743235721062,-517.00892152,0.00038904,30]
[356807831,1743235721100,-168.25135213,0.00038904,30]
[356807832,1743235721137,-500.0,0.00038904,30]
[356807833,1743235721175,-500.0,0.00038904,30]
[356807834,1743235721214,-900.54,0.00038904,30]
[356807835,1743235721253,-500.0,0.00038904,30]
[356807836,1743235721291,-500.0,0.00038904,30]
[356807837,1743235721327,-559.15,0.00038904,30]
[356807838,1743235721364,-620.51,0.00038904,30]
[356807839,1743235721401,-500.0,0.00038904,30]
[356807840,1743235721440,-500.0,0.00038904,30]
[356807841,1743235721478,-592.22797065,0.00038904,30]
[356807842,1743235721514,-855.45,0.00038904,30]
[356807843,1743235721555,-576.35175192,0.00038904,30]
[356807844,1743235721592,-545.57917371,0.00038904,30]
[356807845,1743235721627,-500.0,0.00038904,30]
[356807846,1743235721665,-500.0,0.00038904,30]
[356807847,1743235721702,-500.0,0.00038904,30]
[356807848,1743235721738,-232.39139716,0.00038904,30]
[356807849,1743235721775,-500.0,0.00038904,30]
[356807850,1743235721813,-500.0,0.00038904,30]
[356807851,1743235721850,-500.0,0.00038904,30]
[356807852,1743235721887,-500.0,0.00038904,30]
[356807853,1743235721923,-500.0,0.00038904,30]
[356807854,1743235721961,-500.0,0.00038904,30]
[356807855,1743235722001,-500.0,0.00038904,30]
[356807856,1743235722041,-500.0,0.00038904,30]
[356807857,1743235722084,-500.0,0.00038904,30]
[356807858,1743235722224,-500.0,0.00038904,30]
[356807859,1743235722264,-1000.0,0.00038904,30]
[356807860,1743235722302,-493.2158644,0.00038904,30]
[356807861,1743235722341,-500.0,0.00038904,30]
[356807862,1743235722380,-500.0,0.00038904,30]
[356807863,1743235722422,-500.0,0.00038904,30]
[356807864,1743235722463,-500.0,0.00038904,30]
[356807865,1743235722503,-347.22054,0.00038904,30]
[356807866,1743235722544,-963.21,0.00038904,30]
[356807867,1743235722584,-1734.11,0.00038904,30]
[356807868,1743235722623,-500.0,0.00038904,30]
[356807869,1743235722663,-955.85,0.00038904,30]
[356807870,1743235722705,-500.0,0.00038904,30]
[356807871,1743235722743,-500.0,0.00038904,30]
[356807872,1743235722782,-271.32569035,0.00038904,30]
[356807873,1743235722822,-2452.46,0.00038904,30]
[356807874,1743235722862,-500.0,0.00038904,30]
[356807875,1743235722902,-155.44476438,0.00038904,30]
[356807876,1743235722941,-428.08689297,0.00038904,30]
[356807877,1743235722980,-500.0,0.00038904,30]
[356807878,1743235723019,-602.20734717,0.00038904,30]
[356807879,1743235723060,-500.0,0.00038904,30]
[356807880,1743235723099,-290.75512422,0.00038904,30]
[356807881,1743235723137,-500.0,0.00038904,30]
[356807882,1743235723177,-500.0,0.00038904,30]
[356807883,1743235723216,-200.87784325,0.00038904,30]
[356807884,1743235723257,-500.0,0.00038904,30]
[356807885,1743235723296,-1389.75,0.00038904,30]
[356807886,1743235723335,-500.0,0.00038904,30]
[356807887,1743235723376,-500.0,0.00038904,30]
[356807888,1743235723414,-500.0,0.00038904,30]
[356807889,1743235723452,-500.0,0.00038904,30]
[356807890,1743235723489,-216.20985651,0.00038904,30]
[356807891,1743235723526,-500.0,0.00038904,30]
[356807892,1743235723564,-289.97197157,0.00038904,30]
[356807893,1743235723600,-500.0,0.00038904,30]
[356807894,1743235723643,-1145.24,0.00038904,30]
[356807895,1743235723683,-500.0,0.00038904,30]
[356807896,1743235723721,-500.0,0.00038904,30]
[356807897,1743235723760,-500.0,0.00038904,30]
[356807898,1743235723798,-270.63404509,0.00038904,30]
[356807899,1743235723837,-500.0,0.00038904,30]
[356807900,1743235723875,-535.27676086,0.00038904,30]
[356807901,1743235723913,-500.0,0.00038904,30]
[356807902,1743235723952,-644.97,0.00038904,30]
[356807903,1743235723991,-500.0,0.00038904,30]
[356807904,1743235724031,-620.95,0.00038904,30]
[356807905,1743235724070,-203.89982039,0.00038904,30]
[356807906,1743235724109,-196.34824064,0.00038904,30]
[356807907,1743235724149,-500.0,0.00038904,30]
[356807908,1743235724187,-500.0,0.00038904,30]
[356807909,1743235724225,-578.24,0.00038904,30]
[356807910,1743235724263,-629.6930995,0.00038904,30]
[356807911,1743235724395,-500.0,0.00038904,30]
[356807912,1743235724438,-500.0,0.00038904,30]
[356807913,1743235724479,-500.0,0.00038904,30]
[356807914,1743235724519,-500.0,0.00038904,30]
[356807915,1743235724559,-500.0,0.00038904,30]
[356807916,1743235724597,-310.89394034,0.00038904,30]
[356807917,1743235724636,-500.0,0.00038904,30]